{"text_format":"1","workbook":"xlsx","n_sheets":3,"sheets":["Nutzer-Daten","Ausfüllhinweise","Geheim"],"not_rendered":{"charts":0,"images":2,"macros":0,"external_links":0,"defined_names":6,"comments":0,"pivot_tables":0},"unopened":[],"bounds":{"document_bytes":16777216,"sheet_cells":100000,"rows_first":2000,"rows_last":500,"rows_between":2000,"halvings":0,"cell_chars":16384,"cell_head_chars":4096},"cells_cut":0,"cells_raw":0,"read":"whole","date_system":"1900"}

{"sheet":"Nutzer-Daten","index":0,"n_rows":45,"n_cols":18,"rows_kept":45,"cut":false,"hidden":false,"merged":[[1,0,2,0]]}
[null,"ISSI","Organisation","Org.-Einheit","Alias-OPTA","OPTA OK","Funkkenner","Geräte-TEI","Gerätemodell","GW","Rep","Funktionsgruppe","Dienststelle","Org.-Einheit","Funktion in der Organisation","Name, Vorname","Dienstausweisnummer","KFZ-Kennzeichen"]
["Beispiele1)","Nicht ausfüllen!","POL","PD West","BBPOLBRBHavel BRB 238   ",{"$f":"IF(LEN(E2)=24,\"OK\", LEN(E2))","v":"OK"},"HAVEL 01/91 M"]
[null,"Nicht ausfüllen!","FW","LK LDS","BBFW LDS_4   LF8/6   _3 ",{"$f":"IF(LEN(E3)=24,\"OK\", LEN(E3))","v":"OK"},"FW LDS 04+42+03","000108173532650","MTM800","x"]
[1,null,null,null,"BB______________________",{"$f":"IF(LEN(E4)=24,\"OK\", LEN(E4))","v":"OK"}]
[2,null,null,null,"BB______________________","OK"]
[3,null,null,null,"BB______________________","OK"]
[4,null,null,null,"BB______________________","OK"]
[5,null,null,null,"BB______________________","OK"]
[6,null,null,null,"BB______________________","OK"]
[7,null,null,null,"BB______________________","OK"]
[8,null,null,null,"BB______________________","OK"]
[9,null,null,null,"BB______________________","OK"]
[10,null,null,null,"BB______________________","OK"]
[11,null,null,null,"BB______________________",{"$f":"IF(LEN(E14)=24,\"OK\", LEN(E14))","v":"OK"}]
[12,null,null,null,"BB______________________","OK"]
[13,null,null,null,"BB______________________","OK"]
[14,null,null,null,"BB______________________","OK"]
[15,null,null,null,"BB______________________","OK"]
[16,null,null,null,"BB______________________","OK"]
[17,null,null,null,"BB______________________","OK"]
[18,null,null,null,"BB______________________","OK"]
[19,null,null,null,"BB______________________","OK"]
[20,null,null,null,"BB______________________","OK"]
[21,null,null,null,"BB______________________","OK"]
[22,null,null,null,"BB______________________","OK"]
[23,null,null,null,"BB______________________","OK"]
[24,null,null,null,"BB______________________","OK"]
[25,null,null,null,"BB______________________","OK"]
[26,null,null,null,"BB______________________","OK"]
[27,null,null,null,"BB______________________","OK"]
[28,null,null,null,"BB______________________","OK"]
[29,null,null,null,"BB______________________","OK"]
[30,null,null,null,"BB______________________","OK"]
[31,null,null,null,"BB______________________","OK"]
[32,null,null,null,"BB______________________","OK"]
[33,null,null,null,"BB______________________","OK"]
[34,null,null,null,"BB______________________","OK"]
[35,null,null,null,"BB______________________","OK"]
[36,null,null,null,"BB______________________","OK"]
[37,null,null,null,"BB______________________","OK"]
[38,null,null,null,"BB______________________","OK"]
[39,null,null,null,"BB______________________","OK"]
[40,null,null,null,"BB______________________","OK"]
[]
["1) Ausfüllhinweise sind im nachstehenden Blatt enthalten. "]

{"sheet":"Ausfüllhinweise","index":1,"n_rows":9,"n_cols":18,"rows_kept":9,"cut":false,"hidden":false,"merged":[[1,0,2,0],[3,11,7,17]]}
[null,"ISSI","Organisation","Org.-Einheit","Alias-OPTA","OPTA OK","Funkkenner","Geräte-TEI","Gerätemodell","GW","Rep","Funktionsgruppe","Dienststelle","Org.-Einheit","Funktion in der Organisation","Name, Vorname","Dienstausweisnummer","KFZ-Kennzeichen"]
["Beispiele","Nicht ausfüllen!","POL","PD West","BBPOLBRBHavel BRB 238   ",{"$f":"IF(LEN(E2)=24,\"OK\", LEN(E2))","v":"OK"},"HAVEL 01/91 M"]
[null,"Nicht ausfüllen!","FW","LK LDS","BBFW LDS_4   LF8/6   _3 ","OK","FW LDS 04+42+03","000108173532650","MTM800","x"]
[1,null,null,null,"BB______________________","OK",null,null,null,null,null,"Zur späteren Verwendung!"]
[2,null,null,null,"BB______________________","OK"]
[3,null,null,null,"BB______________________","OK"]
[4,null,null,null,"BB______________________","OK"]
[5,null,null,null,"BB______________________","OK"]
[null,"Wird von der ASBB vergeben und darf nicht ausgefüllt zu werden.","Organisatorische Einheit (PO, FW) aus Auswahlliste und im Leerfeld frei editierbar","Organisatori-sche Unter-Einheit. Aus der Auswahliste können die Polizei-Inspektionen und die Stadt-/ Landkreise ausgewählt werden. \nSonst freilassen (k. A.) bzw. m. Leerfeld frei editieren","Angabe der bestehenden OPTA. \nBitte auf Leerzeichen und die \nUnterstriche achten. \nDie Anzahl der Zeichen muss genau 24 sein.","Diese Feld zeigt an, ob die Länge der OPTA stimmt.(OK =24 Zeichen).","Der Funkkenner ist hier anzugeben. \nEr darf 15 Zeichen nicht überschreiten.","15-stellige TEI des Gerätes, \nwelches für den Einsatz \nmit einer BSI-Karte geplant ist. \n(Die Angabe ist optional).","Typ/Modell des verwendeten Funkgerätes.     \n(Die Angabe ist optional)."," \"X\", wenn Gerät als Gateway benutzt wird.   \n(Die Angabe ist optional)."," \"X\", wenn Gerät als Repeater benutzt wird.  \n(Die Angabe ist optional).","Funktionsgruppe zur Festlegung besonderer Teilnehmer-Merkmale."]

{"sheet":"Geheim","index":2,"n_rows":32,"n_cols":3,"rows_kept":32,"cut":false,"hidden":true,"merged":[]}
["Org","OrgEin","Version"]
[null,null,"01.04"]
["AS-BB","FD BD BPA"]
["ASB","FD BD LKA"]
["Dienstleister","FHPol"]
["DLRG","k. A."]
["DRK","Land BB"]
["DRK WW","LK BAR"]
["FW","LK EE"]
["JUH","LK HVL"]
["Kat","LK LDS"]
["Medical Task Force","LK LOS"]
["MHD","LK MOL"]
["POL","LK OHV"]
["RD","LK OPR"]
["RD privat","LK OSL"]
["SanE","LK PM"]
["SE","LK PR"]
["sonstiges","LK SPN"]
["V","LK TF"]
[null,"LK UM"]
[null,"PD Nord"]
[null,"PD Ost"]
[null,"PD Süd"]
[null,"PD West"]
[null,"PP Potsdam"]
[null,"sonstige"]
[null,"Stadt BRB"]
[null,"Stadt CB"]
[null,"Stadt FF"]
[null,"Stadt P"]
[null,"ZDPol"]